Cogmind - Beta 16 @@@ ROGUE MODE // 2025.10.27 @ 14:27:21 Player: Mathewnd Result: Core destroyed Performance ------------- Evolutions (3) 1500 Regions Visited (5) 1000 Robots Destroyed (144) 720 Value Destroyed (6297) 6297 Prototype IDs (12) 240 Alien Tech Used (0) 0 Bonus (2403) 2403 TOTAL SCORE: 12160 Bonus ------- High Alert Combat Kills 1982 Follower Combat Kills 270 Entered Garrisons 200 Friendly Fire -49 Cogmind --------- Core Integrity 0/700 Matter 218/300 Energy 279/340 System Corruption 4% Temperature Critical (561) Movement Treading (560) Ox5 Location -7/Factory Parts ------- > --- POWER (2) -------- Reinforced Deuterium Engine Micro Nuclear Core > --- PROPULSION (4) --- Light Treads Armored Treads Medium Treads > --- UTILITY (4) ------ Improved Heat Sink High-capacity Storage Unit Hardened Heavy Armor Plating > --- WEAPON (3) ------- Heavy Particle Cannon Advanced Assault Cannon Gauss Cannon > --- INVENTORY (20) --- Light Angular Momentum Engine Light Treads Improved Heat Sink Improved Sensor Array Improved Sensor Array Improved Signal Interpreter Advanced Targeting Computer Core Analyzer Weapon Cycler Transmission Jammer Shock Rifle Rocket Launcher Multitool Power Sword Peak State ------------ > --- POWER ------------ Light Nuclear Core > --- PROPULSION ------- Flightbrick > --- UTILITY ---------- Improved Heat Sink Large Storage Unit Improved Signal Interpreter Advanced Targeting Computer Powered Armor Powered Armor Hacking Suite > --- WEAPON ----------- Heavy Assault Rifle High-powered Shotgun Gauss Rifle > --- INVENTORY -------- Fission Core Light Treads Light Treads Light Treads Light Treads Armored Treads Armored Treads Improved Heat Sink Improved Sensor Array Advanced Targeting Computer Powered Armor Heavy Assault Rifle Missile Launcher Multitool Power Sword [Rating: 73] Favorites ----------- Power Light Nuclear Core Engine Ion Engine Power Core Light Nuclear Core Propulsion Light Treads Treads Light Treads Wheel Wheel Flight Unit Flightbrick Utility Improved Heat Sink Device Improved Heat Sink Storage Large Storage Unit Processor Improved Signal Interpreter Hackware Hacking Suite Protection Powered Armor Weapon Heavy Assault Rifle Energy Gun Subdweller Laser Energy Cannon Plasma Cannon Ballistic Gun Heavy Assault Rifle Ballistic Cannon Battle Cannon Launcher Missile Launcher Special Weapon Multitool Slashing Weapon Power Sword Build | -11 -10 -10 -8 -8 -7 ------- Run | Yrd Mat Sub Mat Gar Fac Slots Evolved 6 | . . . 4 . 2 Power 1 | . . . . . 1 Propulsion 2 | . . . 2 . . Utility 2 | . . . 1 . 1 Weapon 1 | . . . 1 . . Parts Attached 81 | 7 . 7 15 7 45 Power 12 | 1 . 1 2 . 8 Engine 7 | 1 . 1 1 . 4 Core 5 | . . . 1 . 4 Reactor . | . . . . . . Propulsion 18 | 2 . 2 1 . 13 Treads 15 | 2 . . . . 13 Leg . | . . . . . . Wheel 2 | . . 2 . . . Hover . | . . . . . . Flight 1 | . . . 1 . . Utility 23 | 2 . 1 5 2 13 Device 8 | 1 . . 2 . 5 Storage 3 | 1 . . 1 . 1 Processor 4 | . . . 2 . 2 Hackware 1 | . . . . 1 . Protection 7 | . . 1 . 1 5 Artifact . | . . . . . . Weapon 28 | 2 . 3 7 5 11 Energy Gun 3 | . . 1 1 . 1 Energy Cannon 5 | . . 1 . . 4 Ballistic Gun 13 | 2 . . 6 2 3 Ballistic Cannon 3 | . . 1 . . 2 Launcher 1 | . . . . 1 . Special Weapon 1 | . . . . . 1 Impact Weapon . | . . . . . . Slashing Weapon 2 | . . . . 2 . Piercing Weapon . | . . . . . . Special Melee Weapon . | . . . . . . Unidentified Prototypes . | . . . . . . Parts Lost 40 | . . 6 3 3 28 Power 8 | . . 1 1 . 6 Propulsion 11 | . . 2 . . 9 Utility 8 | . . . 1 1 6 Weapon 13 | . . 3 1 2 7 Highest Loss Streak 5 | . . 3 1 1 5 To Critical Strikes 2 | . . 1 . . 1 Average Backups 10 | 1 4 5 6 13 13 Power . | . 1 . . . 1 Propulsion 2 | . 2 1 2 5 2 Utility 3 | . . . 1 3 6 Weapon 2 | . 1 1 1 2 2 Tool/Special . | . . . . . . Unused Backups 16 | . . . 1 . 15 Power 3 | . . . . . 3 Propulsion 3 | . . . 1 . 2 Utility 9 | . . . . . 9 Weapon 1 | . . . . . 1 Tool/Special . | . . . . . . Average Slot Usage (%) 85 | . 100 97 59 70 87 Engine 6 | . 14 13 4 . 4 Core 4 | . . . 2 7 7 Treads 17 | . 28 21 . . 24 Wheel 1 | . . 4 . . . Flight 2 | . . . 6 7 1 Device 9 | . 14 10 9 8 7 Storage 9 | . 14 14 7 7 6 Processor 2 | . . . 7 7 2 Hackware 1 | . . . . 6 1 Protection 5 | . . 3 1 4 8 Energy Gun 1 | . . 2 1 . . Energy Cannon 2 | . . 2 4 . 2 Ballistic Gun 15 | . 28 16 14 17 12 Ballistic Cannon 2 | . . 6 . . 1 Slashing Weapon 1 | . . . . 3 2 Peak Build Rating 73 | 7 7 16 56 62 73 Average Rating 35 | 5 7 8 50 59 44 On Entrance 24 | . 7 7 16 56 59 Avg Prop Armor Cover (%) 12 | . . 12 . . . Naked Turns . | . . . . . . Heaviest Build 101 | 13 13 27 36 38 101 Greatest Support 88 | 40 40 40 26 24 88 Greatest Overweight (x) 5 | . . 2 1 1 5 Average Overweight (x) . | . . . . 1 . Largest Inventory Capacity 20 | 8 8 8 15 15 20 Average Capacity 12 | 7 8 8 8 15 17 Most Carried 20 | 4 4 8 13 15 20 Average Carried 10 | 1 4 6 8 14 14 Final Capacity 20 | 8 8 8 15 15 20 Final Carried 14 | 4 4 8 13 14 14 Class Distribution -------------------- 41% | Mutant 23% | Scavenger-Tank 13% | Scavenger-Mutant 10% | Scavenger-Gunner 7% | Tank 3% | Gunner Dominant Class ---------------- Mutant | -10/Materials Mutant | -10/Subcaves Scavenger-Gunner | -8/Materials Mutant | -8/Garrison Scavenger-Tank | -7/Factory Resources | -11 -10 -10 -8 -8 -7 ----------- Run | Yrd Mat Sub Mat Gar Fac Matter Collected 4056 | 279 29 279 950 790 1729 Remotely . | . . . . . . Salvage Created 5763 | 30 38 253 1641 901 2900 Parts 313 | 7 1 23 88 40 154 Haulers Intercepted 1 | . . . 1 . . Recyclers Shooed 2 | 1 . . . . 1 Parts Field Recycled . | . . . . . . Retrieved Matter . | . . . . . . Parts Self-Destructed 6 | . . 6 . . . Prevented . | . . . . . . Parts Restored . | . . . . . . Kills | -11 -10 -10 -8 -8 -7 ------- Run | Yrd Mat Sub Mat Gar Fac Combat Hostiles Destroyed 110 | . 1 8 29 21 51 Melee 6 | . . . . . 6 Guns 61 | . 1 4 18 18 20 Cannons 27 | . . 4 8 . 15 AOE 12 | . . . . 3 9 Classes Destroyed 18 | 1 1 3 9 1 3 Worker 7 | . . . 1 . 6 Builder 8 | . . . 1 . 7 Tunneler 3 | 2 . . . . 1 Hauler 1 | . . . 1 . . Recycler 5 | . . . . . 5 Mechanic 3 | . . . 1 . 2 Operator 2 | . . . 1 . 1 Watcher 5 | . . . 3 . 2 Swarmer 12 | . . 1 4 4 3 Grunt 57 | . 1 . 16 11 29 Brawler 4 | . . . . 2 2 Duelist 10 | . . . 1 2 7 Protector 2 | . . . . . 2 Sentry 13 | . . . 7 2 4 Hunter 1 | . . . 1 . . Programmer 4 | . . . . . 4 Artisan 1 | . . 1 . . . Subdweller 7 | . . 7 . . . Best Kill Streak 12 | 2 1 2 9 7 12 Combat Bots Only 9 | . 1 2 9 7 4 Max Kills in Single Turn 3 | 1 1 1 2 3 3 Gunslinging . | . . . . . . Exploded 3 | . . . . 3 3 Melee 1 | . . . . . 1 Uniques/NPCs Destroyed . | . . . . . . Combat | -11 -10 -10 -8 -8 -7 -------- Run | Yrd Mat Sub Mat Gar Fac Hostile Shots Fired 725 | . 4 50 147 77 447 Missed 196 | . . 13 46 25 112 Hits 529 | . 4 37 101 52 335 Melee 31 | . . . . . 31 Projectile 498 | . 4 37 101 52 304 AOE 1 | . . . . . 1 Critical Strikes 29 | . . 2 5 . 22 Damage Taken 9627 | . 46 885 1503 764 6429 Core 1063 | . . 95 125 104 739 Absorbed by Shields 27 | . . . . 27 . Ignored by Resistances 12 | . . . 12 . . Regen/Repaired (Parts) 55 | . . . 55 . . Core Remaining (%) 73 | 100 . 62 . 58 . Volleys Fired 381 | 10 9 58 96 58 150 Largest 3 | 2 2 2 3 3 3 Hottest 190 | 40 40 80 190 69 155 Shots Fired 968 | 20 18 100 284 170 376 Gun 755 | 20 18 64 236 169 248 Cannon 203 | . . 36 48 . 119 Launcher 10 | . . . . 1 9 Special . | . . . . . . Kinetic 805 | 20 18 96 230 169 272 Thermal 125 | . . 4 54 . 67 Explosive 10 | . . . . 1 9 Electromagnetic 28 | . . . . . 28 Robot Hit Streak 29 | 5 5 23 29 18 10 Robot Miss Streak 6 | 2 3 2 4 3 6 Penetration Max 1 | . . . . . 1 Secondary Targets 7 | . . 1 1 3 2 Max Gunslinging Chain 1 | . . 1 1 1 1 Shots Hit Robots 617 | 12 10 74 163 111 247 Core Hits 297 | 5 4 19 59 51 159 Critical Kills 6 | . . 1 4 . 1 Critical Parts Destroyed 1 | . . . . 1 . Critical Strikes 12 | . . 2 5 1 4 Burn 1 | . . . 1 . . Meltdown 4 | . . 1 2 . 1 Destroy 3 | . . . 2 1 . Blast 1 | . . 1 . . . Corrupt 1 | . . . . . 1 Sever 2 | . . . . . 2 Melee Attacks 57 | . . . . 21 36 Impact . | . . . . . . Slashing 57 | . . . . 21 36 Piercing . | . . . . . . Sneak Attacks 1 | . . . . . 1 Combat Hostiles . | . . . . . . Follow-up Attacks . | . . . . . . Damage Inflicted 14375 | 95 81 799 3142 2031 8227 Guns 7551 | 95 81 411 2157 1671 3136 Cannons 3455 | . . 388 947 . 2120 Explosions 2675 | . . . 38 360 2277 Melee 677 | . . . . . 677 Ramming 17 | . . . . . 17 Kinetic 8292 | 95 81 770 2061 1671 3614 Thermal 2477 | . . 29 1043 . 1405 Explosive 2255 | . . . . 360 1895 Electromagnetic 657 | . . . 38 . 619 Impact . | . . . . . . Slashing 677 | . . . . . 677 Piercing . | . . . . . . Highest Corruption 4 | . . . . . 4 Average Corruption 3 | . . . . . 3 Corruption Purged 2 | . . . . . 2 Corruption Blocked . | . . . . . . Effects 50 | . . . . . 50 Message Errors 20 | . . . . . 20 Matter Fused 11 | . . . . . 11 Heat Flow Errors 2 | . . . . . 2 Energy Discharges 4 | . . . . . 4 Parts Rejected 1 | . . . . . 1 Parts Fused 1 | . . . . . 1 Data Loss (minor) 6 | . . . . . 6 Data Loss (major) 1 | . . . . . 1 Misfires 2 | . . . . . 2 Weapon Failures 2 | . . . . . 2 Overload Shots . | . . . . . . Overflow Damage 214 | . . . 30 31 153 Projectiles 37 | . . . 30 . 7 Explosions 94 | . . . . 31 63 Melee 83 | . . . . . 83 Knockbacks 12 | . . 4 . . 8 Impact . | . . . . . . Kinetic 10 | . . 4 . . 6 Secondary 2 | . . . . . 2 Self-Inflicted Damage 240 | . . . 20 . 220 Shots 8 | . . . 1 . 7 Rammed 3 | . . . . . 3 Targets Rammed 3 | . . . . . 3 Kicked . | . . . . . . Crushed . | . . . . . . Highest Temperature 733 | . 12 12 413 21 733 Average Temperature 158 | . 8 6 128 8 192 Received Heat Transfer 3453 | . 24 144 675 387 2223 Effects 46 | . . . 2 . 44 Shutdowns 17 | . . . 1 . 16 Energy Bleed 4 | . . . 1 . 3 Interference 11 | . . . . . 11 Matter Decay 2 | . . . . . 2 Short Circuit 2 | . . . . . 2 Damage (minor) 1 | . . . . . 1 Damage (major) 5 | . . . . . 5 Damage (core) 4 | . . . . . 4 Siege Activations . | . . . . . . Martial Activations . | . . . . . . Shielding Activations . | . . . . . . Robots Disrupted . | . . . . . . Combat Hostiles . | . . . . . . Robots Corrupted 1 | . . . . . 1 Combat Hostiles . | . . . . . . Parts Fried 4 | . . . . . 4 Impact Corruptions 1 | . . . . . 1 Robots Melted 5 | . . 1 3 . 1 Combat Hostiles 4 | . . . 3 . 1 Parts Melted 12 | . . 3 5 . 4 Heat Transferred 3845 | . . 37 1518 . 2290 Parts Sabotaged . | . . . . . . Parts Stolen . | . . . . . . Parts Stripped . | . . . . . . Power Chain Reactions 2 | . . . . . 2 Alert | -11 -10 -10 -8 -8 -7 ------- Run | Yrd Mat Sub Mat Gar Fac Maximum Alert Level 5 | . . . 2 4 5 Low Security (%) 13 | 100 100 . 40 . . Level 1 2 | . . . 19 2 . Level 2 10 | . . . 40 18 1 Level 3 48 | . . . . 48 66 Level 4 24 | . . . . 30 31 Level 5 . | . . . . . . High Security . | . . . . . . Max Security . | . . . . . . Peak Influence 1625 | 5 30 . 620 1415 1625 Initial 742 | . . . . 399 742 Average 845 | . 2 . 283 953 1052 Influence Increases 3975 | 10 30 50 938 1046 1901 Destroy 0b10 Robot/C 2220 | . 20 20 580 480 1120 Destroy 0b10 Robot/NC 185 | 10 . . 40 . 135 Destroy Leader 422 | . 10 . 158 40 214 Allied During Kill 66 | . . . . 33 33 Successful Hack 108 | . . . 27 30 51 Disable Machine 270 | . . . 75 15 180 Anti-Garrison Action 350 | . . . . 350 . Destroy Structure 204 | . . . 13 83 108 Partial Spotted 30 | . . . 30 . . Lose Combat Pursuer 120 | . . 30 15 15 60 Influence Decreases 2351 | 10 30 50 324 245 1692 Entered New Map 888 | . . . . 215 673 Time Decay 1107 | 10 30 50 298 . 719 Lost Part 336 | . . . 26 30 280 Lost Ally 20 | . . . . . 20 Squads Dispatched 20 | . 2 . 4 . 14 Investigation 2 | . 1 . 1 . . Extermination 4 | . . . . . 4 Reinforcement 7 | . 1 . 2 . 4 Assault 6 | . . . . . 6 Garrison 1 | . . . 1 . . Intercept . | . . . . . . Searches Triggered . | . . . . . . Construction Impeded 2 | . . . . . 2 Haulers Reinforced 1 | . . . . . 1 Active Scanning Responses . | . . . . . . Cargo Convoy Interrupts . | . . . . . . Stealth | -11 -10 -10 -8 -8 -7 --------- Run | Yrd Mat Sub Mat Gar Fac Distress Signals 6 | . . . 1 . 5 Communications Jammed . | . . . . . . Distress Signals . | . . . . . . Times Spotted 161 | . 4 10 35 23 89 Peak Tracking Total 9 | . 2 3 7 5 9 Tactical Retreats 4 | . . 1 1 1 1 Traps | -11 -10 -10 -8 -8 -7 ------- Run | Yrd Mat Sub Mat Gar Fac Traps Triggered 15 | . . 4 . 9 2 Indirectly . | . . . . . . Trap Hack Attempts . | . . . . . . Triggered . | . . . . . . Disarmed . | . . . . . . Reprogrammed . | . . . . . . Reused . | . . . . . . Traps Extracted . | . . . . . . Installed . | . . . . . . Triggered . | . . . . . . Machines | -11 -10 -10 -8 -8 -7 ---------- Run | Yrd Mat Sub Mat Gar Fac Machines Disabled 24 | . . 1 5 6 12 Max in Single Turn 2 | . . 1 2 1 1 Garrison Relay 5 | . . . . 5 . Machines Repaired . | . . . . . . Machines Dismantled . | . . . . . . Machines Sabotaged . | . . . . . . Overloaded Fab Kills . | . . . . . . Hacking | -11 -10 -10 -8 -8 -7 --------- Run | Yrd Mat Sub Mat Gar Fac Machines Accessed 25 | . . 2 8 5 10 Terminals 20 | . . . 6 5 9 Fabricators . | . . . . . . Repair Stations 1 | . . . 1 . . Recycling Units . | . . . . . . Scanalyzers . | . . . . . . Garrison Access 2 | . . . 1 . 1 Total Hacks 64 | . . 12 24 11 17 Successful 35 | . . 12 15 3 5 Failed 29 | . . . 9 8 12 Catastrophic 4 | . . . . 2 2 Database Lockouts . | . . . . . . Manual 38 | . . . 23 1 14 Terminals 49 | . . . 22 11 16 Fabricators . | . . . . . . Repair Stations 1 | . . . 1 . . Recycling Units . | . . . . . . Scanalyzers . | . . . . . . Garrison Access 2 | . . . 1 . 1 Terminal Hacks 18 | . . 12 3 3 . Record 11 | . . 11 . . . Part Schematic 1 | . . . 1 . . Open Door 1 | . . . . 1 . Branch Access Points 1 | . . . 1 . . Emergency Access Points 1 | . . . . 1 . Registered Components 1 | . . . 1 . . Garrison Registry 1 | . . . . 1 . Proto ID Catalog 1 | . . 1 . . . Fabricator Hacks . | . . . . . . Repair Station Hacks . | . . . . . . Recycling Unit Hacks . | . . . . . . Scanalyzer . | . . . . . . Garrison Access Hacks 1 | . . . 1 . . Unlock Access 1 | . . . 1 . . Unauthorized Hacks 16 | . . . 11 . 5 Terminals 15 | . . . 10 . 5 Botnet 5 | . . . 5 . . Skim 10 | . . . 5 . 5 Fabricators . | . . . . . . Repair Stations 1 | . . . 1 . . Patch 1 | . . . 1 . . Recycling Units . | . . . . . . Scanalyzers . | . . . . . . Garrison Access . | . . . . . . Data Cores Recovered . | . . . . . . Used . | . . . . . . Hacking Detections 18 | . . . 5 5 8 Full Trace Events . | . . . . . . Feedback Events . | . . . . . . Feedback Blocked . | . . . . . . Robot Schematics Acquired . | . . . . . . Robots Built . | . . . . . . Authchips . | . . . . . . Time . | . . . . . . Total Robot Build Rating . | . . . . . . Part Schematics Acquired 1 | . . . 1 . . Parts Built . | . . . . . . Authchips . | . . . . . . Time . | . . . . . . Total Part Build Rating . | . . . . . . Part Studies Acquired . | . . . . . . Parts Repaired . | . . . . . . Time . | . . . . . . Parts Recycled . | . . . . . . Recycled Matter . | . . . . . . Retrieved Matter . | . . . . . . Retrieved Components . | . . . . . . Parts Scanalyzed . | . . . . . . Part Schematics Acquired . | . . . . . . Parts Damaged . | . . . . . . Bothacking | -11 -10 -10 -8 -8 -7 ------------ Run | Yrd Mat Sub Mat Gar Fac Used RIF Installer . | . . . . . . Robots Hacked . | . . . . . . Non-combat . | . . . . . . Combat . | . . . . . . Robot Hacks Applied . | . . . . . . Relay Couplers Released 19 | . . . . 19 . Machine Destruction 19 | . . . . 19 . Fabnet Peak Effective % . | . . . . . . Robots Rewired 3 | . . . . 3 . Allies Hacked . | . . . . . . Hacks Repelled . | . . . . . . Allies | -11 -10 -10 -8 -8 -7 -------- Run | Yrd Mat Sub Mat Gar Fac Total Allies 3 | . . . . 3 . Largest Group 3 | . . . . 3 3 Highest-Rated Group 109 | . . . . 109 109 Highest-Rated Ally 39 | . . . . 39 39 Initial Warlord ECA Mod 8 | . . . . . 8 Total Orders 4 | . . . . 4 . STAY 2 | . . . . 2 . FOLLOW 2 | . . . . 2 . Ally Attacks 53 | . . . . 17 36 Total Damage 1049 | . . . . 188 861 Kills 11 | . . . . 3 8 Allies Corrupted . | . . . . . . Allies Melted 1 | . . 1 . . . Intel | -11 -10 -10 -8 -8 -7 ------- Run | Yrd Mat Sub Mat Gar Fac Active Infowar (turns) 2082 | 99 315 1668 . . . Seismic 2082 | 99 315 1668 . . . Robot Analysis Total . | . . . . . . Derelict Logs Recovered . | . . . . . . Drone Launches . | . . . . . . Drone Recoveries . | . . . . . . Exploration | -11 -10 -10 -8 -8 -7 ------------- Run | Yrd Mat Sub Mat Gar Fac Turns Passed 8183 | 208 315 2175 718 1399 3368 Spaces Moved 4933 | 108 183 1354 695 1090 1503 Core 6 | 6 . . . . . Treads 2234 | 102 183 902 . . 1047 Legs . | . . . . . . Wheels 457 | . . 452 5 . . Hover . | . . . . . . Flight 2236 | . . . 690 1090 456 Fastest Speed 40 | 50 160 95 40 80 80 Average Speed 122 | 153 160 142 48 80 163 Slowest Speed 560 | 160 160 160 105 80 560 Overloaded Moves . | . . . . . . Propulsion Burnouts . | . . . . . . Robots Hopped 8 | . . . 8 . . Potential Cave-ins . | . . . . . . Cave-ins Triggered . | . . . . . . Exploration Rate (%) 46 | 7 26 60 66 86 36 Regions Visited 5 Branch Regions 1 Pre-discovered Areas 1 | . . . . . 1 Known Exits Taken 2 | . . 1 1 . . Unknown Exits Taken 2 | 1 1 . . . . Scrap Searched 6 | . . 6 . . . Spaces Dug 14 | . . . . 3 11 Terrain Destroyed 75 | . . . 8 3 64 Melee 14 | . . . . 3 11 Projectile 16 | . . . 8 . 8 AOE 45 | . . . . . 45 Terrain Rammed . | . . . . . . Walls Destroyed . | . . . . . . Machines Disabled . | . . . . . . Actions | -11 -10 -10 -8 -8 -7 --------- Run | Yrd Mat Sub Mat Gar Fac Total 6226 | 130 191 1510 879 1473 2043 Wait 504 | 2 . 87 52 130 233 Move 4912 | 107 182 1353 679 1088 1503 Hop 8 | . . . 8 . . Pick Up 65 | 4 . 4 18 6 33 Fast Attach 30 | 7 . 2 6 1 14 Attach 37 | . . 4 3 4 26 Detach 5 | . . . 1 . 4 Swap 44 | . . 2 6 11 25 Drop 27 | . . . 10 3 14 Fire 381 | 10 9 58 96 58 150 Melee 57 | . . . . 21 36 Ram . | . . . . . . Kick . | . . . . . . Crush 3 | . . . . . 3 Escape Stasis 116 | . . . . 116 . Rewire 35 | . . . . 35 . Trap . | . . . . . . Miscellaneous 2 | . . . . . 2 Route ------- -11/Scrapyard -10/Materials -10/Subcaves (discovered 4 exits: *Mat x2 / Rec / [*Scr]) -8/Materials (discovered 5 exits: *Fac x2 / Sto x2 / Gar) -8/Garrison (discovered 3 exits: *Fac x3) -7/Factory (discovered 6 exits: *Fac x4 / Low x2) History --------- Turn | Location | Event 2 | -11/Scrapyard | Met Revision 17 7 | -11/Scrapyard | Discovered new exit (range 16) 209 | -11/Scrapyard | Entered Materials 210 | -10/Materials | Met a group of wandering Federalists 305 | -10/Materials | Build established: Mutant 500 | -10/Materials | Discovered new exit (range 10) 524 | -10/Materials | Entered Subcaves 525 | -10/Subcaves | Continued accompanying wandering Federalists (3) 636 | -10/Subcaves | A swath of the cavern ceiling suddenly collapsed 1292 | -10/Subcaves | Visited Clippyterm 1297 | -10/Subcaves | Identified exit to Materials 1297 | -10/Subcaves | Identified exit to Recycling 1534 | -10/Subcaves | Shifting Twisted Machinery released Riot Gun 1544 | -10/Subcaves | Shifting Twisted Machinery released Enh. Flamer 1652 | -10/Subcaves | Shifting Twisted Machinery released Sub. Power Source 1660 | -10/Subcaves | Shifting Twisted Machinery released Sub. Monowheel 1713 | -10/Subcaves | A swath of the cavern ceiling suddenly collapsed 2321 | -10/Subcaves | Lost 3 parts (1p2w) 2494 | -10/Subcaves | Visited 4L-MR0's lab 2507 | -10/Subcaves | Found Flightbrick 2699 | -10/Subcaves | Entered Materials 2699 | -8/Materials | Evolved 4 slots: Propulsion x2, Utility x1, Weapon x1 2707 | -8/Materials | Attached Flightbrick, gained temporary slots: Utility x3 2744 | -8/Materials | Identified exit to Storage 2891 | -8/Materials | Discovered new exit (range 10) 3183 | -8/Materials | Destroyed 9 combat bots 3246 | -8/Materials | Build established: Scavenger-Gunner 3278 | -8/Materials | Discovered new exit (range 9) 3323 | -8/Materials | Garrison activated, responded to threat 3417 | -8/Materials | Identified exit to Garrison 3417 | -8/Materials | Entered Garrison 3449 | -8/Garrison | Triggered checkpoint 3453 | -8/Garrison | Garrison Relay disabled 3554 | -8/Garrison | Garrison Relay disabled 3642 | -8/Garrison | Destroyed 7 combat bots 3713 | -8/Garrison | Triggered checkpoint 3713 | -8/Garrison | Triggered checkpoint 3817 | -8/Garrison | Discovered new exit (range 10) 3847 | -8/Garrison | Triggered checkpoint 3891 | -8/Garrison | Garrison Relay disabled 3968 | -8/Garrison | Identified exit to Factory 4287 | -8/Garrison | Triggered checkpoint 4387 | -8/Garrison | Garrison Relay disabled 4409 | -8/Garrison | Discovered exit to Factory (range 13) 4557 | -8/Garrison | Discovered exit to Factory (range 10) 4594 | -8/Garrison | Discovered exit to Factory (range 35) 4594 | -8/Garrison | Discovered exit to Factory (range 7) 4594 | -8/Garrison | Discovered exit to Factory (range 59) 4596 | -8/Garrison | Build established: Mutant 4623 | -8/Garrison | Triggered checkpoint 4660 | -8/Garrison | Garrison Relay disabled 4705 | -8/Garrison | Attempted to access garrison exit controls, blocked by remote lockdown 4816 | -8/Garrison | Entered Factory 4816 | -7/Factory | Accompanied by 3 allies 4816 | -7/Factory | Evolved 2 slots: Power x1, Utility x1 4944 | -7/Factory | Build established: Scavenger-Tank 4980 | -7/Factory | Found Powered Armor 4983 | -7/Factory | Found Powered Armor 4988 | -7/Factory | Found Powered Armor 5270 | -7/Factory | Build established: Tank 5481 | -7/Factory | Discovered new exit (range 16) 5757 | -7/Factory | Build established: Scavenger-Tank 6016 | -7/Factory | First assault squad dispatched 6363 | -7/Factory | Lost 5 parts (1p4n) 6413 | -7/Factory | Lost 3 parts (2u1w) 6420 | -7/Factory | Identified exit to Factory 7209 | -7/Factory | Lost 3 parts (1u2w) 7297 | -7/Factory | Lost 4 parts (1p1n2w) 7358 | -7/Factory | Lost 4 parts (1p1n1u1w) 7362 | -7/Factory | Discovered exit to Factory (range 14) 7628 | -7/Factory | Learned Extension trap positions 7636 | -7/Factory | Build established: Scavenger-Mutant 7720 | -7/Factory | Learned 4 Lower Caves zone layouts 7752 | -7/Factory | Learned Extension emergency access door positions 7774 | -7/Factory | Identified exit to Lower Caves 7804 | -7/Factory | Learned location of Zion (-7) 7836 | -7/Factory | Loaded intel: 104 trap records 7876 | -7/Factory | Learned location of 2 exits from Factory 8163 | -7/Factory | Core integrity fell below 50% 8166 | -7/Factory | Core integrity fell below 20% 8185 | -7/Factory | Core destroyed Last Messages --------------- 08174_ Adv. Assault Cannon temporarily disabled. 08174_ K-01 Serf collects debris. 08176_ Power failure, Mic. Nuclear Core shutdown. 08177_ Overheating: Lgt. Treads damaged (-29). 08177_ System corrupted: Matter fused (-8). 08177_ R-06 Scavenger collects Unknown Leg. 08179_ K-01 Serf collects debris. 08180_ Arm. Treads broken. 08180_ Overheating: Short circuit. 08180_ R-06 Scavenger collects Aluminum Leg. 08181_ Acquired 130 matter. 08182_ Overheating: Matter decay (-29). 08183_ Power failure, Rnf. Deuterium Engine shutdown. 08183_ Overheating: Energy bleed (-71). 08183_ K-01 Serf collects debris. 08184_ R-06 Scavenger collects Sml. Storage Unit. 08185_ Overheating: Core damaged (-91). Map ----- +----------------------------------------------------+ | ?????????????????????????????????????????????????? | | ?????????????????????????????????????????????????? | | ?????????????????????????????????????????????????? | | ?????????????????????????????????????????????????? | | ?????????????????????????????????????????????????? | | ?????????????????????????????????????????????????? | | ?????????????????????????????????????????????????? | | ?????????????????????????????????????????????????? | | ?????????????????????????????????????????????????? | | ?????????????????????????????????????????????????? | | ?????????????????????????????????????????????????? | | ?????????????????????????????????????????????????? | | ?????????????????????????????????????????????????? | | ?????????????????????????????????????????????????? | | ????????????????????####??#######????????????????? | | ????????????????????# ?? #???????????????? | | ????????????????????# ?? #???????????????? | | ????????????????????# ""?" #???????????????? | | ????????????????????# """" ] #???????????????? | | ???????????# """" #???????????????? | | #??????????# """" #???????????????? | | #??????????#[ """ #????^^^^???????? | | #??????????# """" """ #?????^?^???????? | | #??????????#= """" " #???????????????? | | #?????????## """"% "F" #???????????????? | | #?????????## @! """ ##??????????????? | | #??????????# ! = =% ##??????????????? | | #??????????#### * ###???? ???????? | | #####????????# % #### ??????? | | ##T ##########% g = rr ??????? | | ??????? | | ??????? | | % ??????? | | ??????? | | %% % ??????? | | ###+######+########## k ??????? | | %# ^ ^ " ## ##########???????? | | # """"^ # ############????????????????? | | %# """ ^^ # #???????????????????????????? | | # """"^ # = """ #???????????????????????????? | | # """" # """ #???????????????????????????? | | # """" * # """ #???????????????????????????? | | # """" # "" #???????????????????????????? | | # """" # "" #???????????????????????????? | | # # "" #???????????????????????????? | | ########## "" """ #???????????????????????????? | | #????????# "" """ #???????????????????????????? | | % #????????# S """ #???????????????????????????? | | #????????# "" ""?????????????????????????????? | | # #????????# "" ""?????????????????????????????? | +----------------------------------------------------+ Best States ------------- Heat Dissipation 62 Energy Generation 27 Energy Capacity 480 Matter Stores 300 Matter Capacity 300 Sight Range 16 Terrain Scan Density 10 Armor Coverage 800 Resistance: KI 10 Weapon Cycling 15 Evasion (%) 62 Targeting Accuracy 8 Recoil Reduction 4 Offensive Hacking 10 Item Schematics ----------------- Huge Storage Unit | -8/Materials | Hacked Robot Schematics ------------------ None Fabricated ------------ Nothing Repaired ---------- Nothing Studied --------- None Alien Tech Used ----------------- None Achievements -------------- Art Critic Bumper Bots Mistaken Identity Strength In Numbers You Again Challenges ------------ None Game ------ Seed AerolevCompactDiverter Manual? 0 Play Time 01:01:04 Cumulative 410.6 hours Start 2025.10.27 @ 12:58:59 End 2025.10.27 @ 14:27:21 Sessions 1 Manual Loads 0 Difficulty Rogue Special Mode None Game No. 325 Rogue 325 Adventurer 0 Explorer 0 Win Type - Total 18 Types 3/2/5/2/0/0/4/1/0/1 Lore% 91 Gallery% 71 Achievement% 47 Wizard Run 0 Options --------- Layout 1 ASCII 0 Keyboard 1 Movement Numpad Keybinds 0 Fullscreen 2 Font 24/Smallcaps Map View 50x35 Zoom Use 0% Tactical HUD 1 Map Filters NONE Filters NONE Steam 1 RUN: e30451eb-112b-4d29-bf70-3053709d927a